Cogmind - Beta 10.2 @@@ ROGUE MODE // 2021.05.22 @ 14:05:49 Player: sorro Result: Destroyed by G-34 Mercenary with Small Laser Performance ------------- Evolutions (1) 500 Regions Visited (3) 600 Robots Destroyed (0) 0 Value Destroyed (0) 0 Prototype IDs (1) 20 Alien Tech Used (0) 0 Bonus (200) 200 TOTAL SCORE: 1320 Bonus ------- Pacifist 200 Cogmind --------- Core Integrity 0/400 Matter 300/300 Energy 99/100 System Corruption 0% Temperature Cool (6) Movement Core (50) Location -9/Materials Parts ------- > --- POWER (1) -------- (None) > --- PROPULSION (2) --- (None) > --- UTILITY (4) ------ (None) > --- WEAPON (2) ------- (None) > --- INVENTORY (4) ---- Light Ion Engine Peak State ------------ > --- POWER ------------ Light Ion Engine > --- PROPULSION ------- (None) > --- UTILITY ---------- Field Recycling Unit Bomb Drone Bay > --- WEAPON ----------- (None) > --- INVENTORY -------- Light Ion Engine [Rating: 17] Favorites ----------- Power Ion Engine Engine Ion Engine Propulsion Compact Wheel Wheel Compact Wheel Utility Bomb Drone Bay Device Bomb Drone Bay Storage Small Storage Unit Weapon Assault Rifle Ballistic Gun Assault Rifle Build | -11 -10 -10 -9 ------- Run | Scr Mat Min Mat Slots Evolved 2 | . . . 2 Power . | . . . . Propulsion . | . . . . Utility 2 | . . . 2 Weapon . | . . . . Parts Attached 10 | 6 . 2 2 Power 2 | 1 . . 1 Engine 2 | 1 . . 1 Core . | . . . . Reactor . | . . . . Propulsion 2 | 2 . . . Treads . | . . . . Leg . | . . . . Wheel 2 | 2 . . . Hover . | . . . . Flight . | . . . . Utility 4 | 1 . 2 1 Device 3 | . . 2 1 Storage 1 | 1 . . . Processor . | . . . . Hackware . | . . . . Protection . | . . . . Artifact . | . . . . Weapon 2 | 2 . . . Energy Gun . | . . . . Energy Cannon . | . . . . Ballistic Gun 2 | 2 . . . Ballistic Cannon . | . . . . Launcher . | . . . . Special Weapon . | . . . . Impact Weapon . | . . . . Slashing Weapon . | . . . . Piercing Weapon . | . . . . Special Melee Weapon . | . . . . Unidentified Prototypes 1 | . . 1 . Parts Lost 8 | . . 5 3 Power 2 | . . 1 1 Propulsion 2 | . . 2 . Utility 2 | . . . 2 Weapon 2 | . . 2 . Highest Loss Streak 4 | . . 4 3 Average Slot Usage (%) 35 | . 85 38 20 Engine 6 | . 14 4 6 Wheel 6 | . 28 6 . Device 11 | . . 12 14 Storage 3 | . 14 4 . Ballistic Gun 7 | . 28 9 . Naked Turns 13 | . . 1 12 Heaviest Build 19 | 12 12 13 19 Greatest Support 32 | 32 32 32 3 Greatest Overweight (x) 6 | . . 3 6 Average Overweight (x) 1 | . . 1 2 Largest Inventory Capacity 6 | 6 6 6 4 Average Capacity 4 | 5 6 4 4 Most Carried 4 | 4 3 4 2 Average Carried 1 | 1 2 2 1 Final Capacity 6 | 6 6 4 4 Final Carried 3 | 1 3 2 1 Class Distribution -------------------- 100% | Mutant Dominant Class ---------------- Mutant | -10/Materials Mutant | -10/Mines Mutant | -9/Materials Resources | -11 -10 -10 -9 ----------- Run | Scr Mat Min Mat Matter Collected 280 | 236 . 24 20 Remotely . | . . . . Salvage Created . | . . . . Parts . | . . . . Haulers Intercepted . | . . . . Recyclers Shooed . | . . . . Parts Field Recycled . | . . . . Retrieved Matter . | . . . . Parts Self-Destructed . | . . . . Prevented . | . . . . Kills | -11 -10 -10 -9 ------- Run | Scr Mat Min Mat Combat Hostiles Destroyed . | . . . . Classes Destroyed . | . . . . Best Kill Streak . | . . . . Combat Bots Only . | . . . . Max Kills in Single Turn . | . . . . Gunslinging . | . . . . Exploded . | . . . . Melee . | . . . . Uniques/NPCs Destroyed . | . . . . Combat | -11 -10 -10 -9 -------- Run | Scr Mat Min Mat Damage Taken 1387 | . 155 481 751 Core 581 | . 41 133 407 Absorbed by Shields . | . . . . Core Remaining (%) 65 | 100 . 30 . Volleys Fired . | . . . . Largest . | . . . . Hottest . | . . . . Shots Fired . | . . . . Gun . | . . . . Cannon . | . . . . Launcher . | . . . . Special . | . . . . Kinetic . | . . . . Thermal . | . . . . Explosive . | . . . . Electromagnetic . | . . . . Robot Hit Streak . | . . . . Robot Miss Streak . | . . . . Penetration Max . | . . . . Secondary Targets . | . . . . Shots Hit Robots . | . . . . Core Hits 1 | . . . 1 Critical Hits . | . . . . Critical Kills . | . . . . Critical Parts Destroyed . | . . . . Melee Attacks . | . . . . Impact . | . . . . Slashing . | . . . . Piercing . | . . . . Sneak Attacks . | . . . . Combat Hostiles . | . . . . Follow-up Attacks . | . . . . Damage Inflicted 9 | . . . 9 Guns . | . . . . Cannons . | . . . . Explosions . | . . . . Melee . | . . . . Ramming 9 | . . . 9 Kinetic . | . . . . Thermal . | . . . . Explosive . | . . . . Electromagnetic . | . . . . Impact . | . . . . Slashing . | . . . . Piercing . | . . . . Highest Corruption . | . . . . Average Corruption . | . . . . Corruption Purged . | . . . . Overload Shots . | . . . . Overflow Damage . | . . . . Projectiles . | . . . . Explosions . | . . . . Melee . | . . . . Knockbacks . | . . . . Impact . | . . . . Kinetic . | . . . . Secondary . | . . . . Self-Inflicted Damage 4 | . . . 4 Shots . | . . . . Rammed 2 | . . . 2 Targets Rammed 2 | . . . 2 Kicked . | . . . . Crushed . | . . . . Highest Temperature . | . . . . Average Temperature . | . . . . Received Heat Transfer 360 | . . . 360 Siege Activations . | . . . . Robots Corrupted . | . . . . Combat Hostiles . | . . . . Parts Fried . | . . . . Impact Corruptions . | . . . . Robots Melted . | . . . . Combat Hostiles . | . . . . Parts Melted . | . . . . Heat Transferred . | . . . . Parts Sabotaged . | . . . . Parts Stolen . | . . . . Parts Stripped . | . . . . Power Chain Reactions . | . . . . Missiles Intercepted . | . . . . Alert | -11 -10 -10 -9 ------- Run | Scr Mat Min Mat Peak Influence 30 | . . 15 30 Initial . | . . . . Average . | . . . . Maximum Alert Level . | . . . . Low Security (%) 100 | 100 100 100 100 Level 1 . | . . . . Level 2 . | . . . . Level 3 . | . . . . Level 4 . | . . . . Level 5 . | . . . . High Security . | . . . . Max Security . | . . . . Squads Dispatched 3 | . . . 3 Investigation 1 | . . . 1 Extermination . | . . . . Reinforcement 2 | . . . 2 Assault . | . . . . Garrison . | . . . . Intercept . | . . . . Construction Impeded . | . . . . Haulers Reinforced . | . . . . Stealth | -11 -10 -10 -9 --------- Run | Scr Mat Min Mat Distress Signals 1 | . 1 . . Communications Jammed . | . . . . Distress Signals . | . . . . Times Spotted 15 | . 4 4 7 Peak Tracking Total 5 | . 5 3 3 Tactical Retreats 1 | . . 1 . Traps | -11 -10 -10 -9 ------- Run | Scr Mat Min Mat Traps Triggered . | . . . . Indirectly . | . . . . Trap Hack Attempts . | . . . . Triggered . | . . . . Disarmed . | . . . . Reprogrammed . | . . . . Reused . | . . . . Traps Extracted . | . . . . Installed . | . . . . Triggered . | . . . . Machines | -11 -10 -10 -9 ---------- Run | Scr Mat Min Mat Machines Disabled . | . . . . Max in Single Turn . | . . . . Machines Sabotaged . | . . . . Garrisons Compromised . | . . . . Overloaded Fab Kills . | . . . . Fab Network Shutdowns . | . . . . Hacking | -11 -10 -10 -9 --------- Run | Scr Mat Min Mat Machines Accessed 1 | . . 1 . Terminals . | . . . . Fabricators . | . . . . Repair Stations . | . . . . Recycling Units . | . . . . Scanalyzers . | . . . . Garrison Access . | . . . . Total Hacks 1 | . . 1 . Successful 1 | . . 1 . Failed . | . . . . Catastrophic . | . . . . Database Lockouts . | . . . . Manual . | . . . . Terminals . | . . . . Fabricators . | . . . . Repair Stations . | . . . . Recycling Units . | . . . . Scanalyzers . | . . . . Garrison Access . | . . . . Terminal Hacks 1 | . . 1 . Open Door 1 | . . 1 . Fabricator Hacks . | . . . . Repair Station Hacks . | . . . . Recycling Unit Hacks . | . . . . Scanalyzer . | . . . . Garrison Access Hacks . | . . . . Unauthorized Hacks . | . . . . Terminals . | . . . . Fabricators . | . . . . Repair Stations . | . . . . Recycling Units . | . . . . Scanalyzers . | . . . . Garrison Access . | . . . . Data Cores Recovered . | . . . . Used . | . . . . Hacking Detections . | . . . . Full Trace Events . | . . . . Feedback Events . | . . . . Feedback Blocked . | . . . . Robot Schematics Acquired . | . . . . Robots Built . | . . . . Matter . | . . . . Time . | . . . . Total Robot Build Rating . | . . . . Part Schematics Acquired . | . . . . Parts Built . | . . . . Matter . | . . . . Time . | . . . . Total Part Build Rating . | . . . . Parts Repaired . | . . . . Time . | . . . . Parts Recycled . | . . . . Recycled Matter . | . . . . Retrieved Matter . | . . . . Retrieved Components . | . . . . Parts Scanalyzed . | . . . . Part Schematics Acquired . | . . . . Parts Damaged . | . . . . Bothacking | -11 -10 -10 -9 ------------ Run | Scr Mat Min Mat Used RIF Installer . | . . . . Robots Hacked . | . . . . Non-combat . | . . . . Combat . | . . . . Robot Hacks Applied . | . . . . Relay Couplers Released . | . . . . Robots Rewired . | . . . . Allies Hacked . | . . . . Hacks Repelled . | . . . . Allies | -11 -10 -10 -9 -------- Run | Scr Mat Min Mat Total Allies . | . . . . Largest Group . | . . . . Highest-Rated Group . | . . . . Highest-Rated Ally . | . . . . Total Orders . | . . . . Ally Attacks 12 | . . 2 10 Total Damage . | . . . . Kills . | . . . . Allies Corrupted . | . . . . Allies Melted . | . . . . Intel | -11 -10 -10 -9 ------- Run | Scr Mat Min Mat Robot Analysis Total . | . . . . Derelict Logs Recovered . | . . . . Drone Launches 16 | . . 16 . Drone Recoveries 3 | . . . 3 Exploration | -11 -10 -10 -9 ------------- Run | Scr Mat Min Mat Turns Passed 470 | 54 49 175 192 Spaces Moved 333 | 51 48 134 100 Core 202 | 24 . 78 100 Treads . | . . . . Legs . | . . . . Wheels 131 | 27 48 56 . Hover . | . . . . Flight . | . . . . Fastest Speed 50 | 50 100 100 50 Average Speed 133 | 76 100 128 185 Slowest Speed 350 | 100 100 200 350 Overloaded Moves . | . . . . Propulsion Burnouts . | . . . . Robots Hopped . | . . . . Cave-ins Triggered . | . . . . Exploration Rate (%) 19 | 4 18 38 17 Regions Visited 3 Branch Regions 1 Pre-discovered Areas . | . . . . Known Exits Taken . | . . . . Unknown Exits Taken 3 | 1 1 1 . Scrap Searched 1 | . . 1 . Spaces Dug . | . . . . Terrain Destroyed . | . . . . Melee . | . . . . Projectile . | . . . . AOE . | . . . . Terrain Rammed . | . . . . Walls Destroyed . | . . . . Machines Disabled . | . . . . Actions | -11 -10 -10 -9 --------- Run | Scr Mat Min Mat Total 358 | 66 49 138 105 Wait 3 | 3 . . . Move 330 | 50 47 133 100 Hop . | . . . . Pick Up 11 | 7 2 1 1 Fast Attach . | . . . . Attach 10 | 6 . 2 2 Detach . | . . . . Swap . | . . . . Drop 2 | . . 2 . Fire . | . . . . Melee . | . . . . Ram 2 | . . . 2 Kick . | . . . . Crush . | . . . . Escape Stasis . | . . . . Rewire . | . . . . Trap . | . . . . Miscellaneous . | . . . . Route ------- -11/Scrapyard -10/Materials -10/Mines -9/Materials History --------- Turn | Location | Event 7 | -11/Scrapyard | Discovered new exit (range 14) 55 | -11/Scrapyard | Entered Materials 93 | -10/Materials | Discovered new exit (range 12) 104 | -10/Materials | Entered Mines 144 | -10/Mines | Found the Drone Emporium 168 | -10/Mines | Found Prototype Device 171 | -10/Mines | Core integrity fell below 50% 171 | -10/Mines | Identified Bomb Drone Bay 195 | -10/Mines | Lost 4 parts (1p1n2w) 264 | -10/Mines | Discovered new exit (range 10) 279 | -10/Mines | Entered Materials 279 | -9/Materials | Accompanied by 14 allies 279 | -9/Materials | Evolved 2 slots: Utility x2 306 | -9/Materials | Build established: Mutant 453 | -9/Materials | Core integrity fell below 50% 465 | -9/Materials | Core integrity fell below 20% 471 | -9/Materials | Destroyed by G-34 Mercenary with Small Laser Last Messages --------------- 00438_ G-34 Mercenary heat short circuits Ion Engine. 00439_ The unstable cave ceiling collapses. 00439_ K-01 Serf collects debris. 00439_ Bomb Drone Bay destroyed. 00439_ >> Lost connection to Bomb Drone. 00441_ The unstable cave ceiling collapses. 00442_ G-34 Mercenary heat short circuits Aluminum Leg. 00442_ Slammed into G-34 Mercenary. 00443_ Field Recycling Unit permanently disabled. 00443_ Destabilizing: Short circuit. 00447_ The unstable cave ceiling collapses. 00447_ U-05 Engineer builds a Wall. 00447_ Bomb Drone destroyed. 00451_ The unstable cave ceiling collapses. 00454_ U-05 Engineer lays Concrete. 00457_ U-05 Engineer builds a Wall. 00459_ Broken Field Recycling Unit destroyed. 00461_ U-05 Engineer lays Concrete. 00466_ U-05 Engineer builds a Wall. 00470_ U-05 Engineer lays Concrete. Map ----- +----------------------------------------------------+ | ?????????????????????????????????????????????????? | | ?????????????????????????????????????????????????? | | ?????????????????????????????????????????????????? | | ?????????????????????????????????????????????????? | | ?????????????????????????????????????????????????? | | ????????????????????????????????????#????????????? | | ??????????????????????????????????? #????????????? | | ??????????????????????????????????? #????????????? | | ??????????????????????????????????? #????????????? | | ??????????????????????????????????? #????????????? | | ?????????????????????????????????## ###??????????? | | ?????????????????????????????????# ???????????? | | ????????? ??????????????????????# #???????????? | | ???????? ??????????????????????# #????##?????? | | ????????" ???????????????######?# ##### ###???? | | # ????"" #???????????#### ##;### # ?#??? | | # ??"" #?????????###;;;;;; ### # """ #??? | | # ?? #?????????# u ; """ #??? | | # #########?# ; """ #??? | | # """ ## """ ### #??? | | ? T" ## "T" ## #??? | | ?? """ ## #??? | | ?? # g #??? | | ?? # %% # #??? | | ????# # ## g ## ######## | | ????# # # %# @ # ### | | ?????# * = % g | | ???# # %! % %= | | ????# [ [a =% | | ????# # # ## ## # ! #### | | ????# # ## # ##### # | | ????# # # # # # | | ????# " " ##### # ### !# # | | ????# """"""" #???# !=/ # !! ## # + # | | ????# """"""" #???# !=/ # ! ## % " # # | | ????# """"""" #???# !/ # ### # # # | | ????#?"""?"""?#???###############?# # # | | ??????????????????????????????????# # | | ??????????????????????????????????# # # | | ??????????????????????????????????# # | | ??????????????????????????????????### ######### | | ????????????????????????????????????########?????? | | ?????????????????????????????????????????????????? | | ?????????????????????????????????????????????????? | | | | | | | | | | | | | +----------------------------------------------------+ Best States ------------- Heat Dissipation 28 Energy Generation 10 Energy Capacity 250 Matter Stores 300 Matter Capacity 300 Sight Range 16 Terrain Scan Density 10 ECM Strength 1 Evasion (%) 50 Item Schematics ----------------- None Robot Schematics ------------------ None Fabricated ------------ Nothing Alien Tech Used ----------------- None Achievements -------------- Release The Drones! Challenges ------------ None Game ------ Seed DefenseFlightStorage Manual? 0 Play Time 00:11:08 Cumulative 22.6 hours Start 2021.05.22 @ 13:51:53 End 2021.05.22 @ 14:05:49 Sessions 1 Manual Loads 0 Difficulty Rogue Special Mode None Game No. 8 Rogue 8 Adventurer 0 Explorer 0 Win Type - Total 0 Types 0/0/0/0/0/0/0/0/0 Lore% 3 Gallery% 9 Achievement% 9 Wizard Run 0 Options --------- ASCII 0 Keyboard 0 Movement Mouse Keybinds 0 Fullscreen 2 Font 18/TerminusBold Map View 76x50 Tactical HUD 1 Map Filters NONE Filters NONE Steam 1 RUN: eac5cd53-b3f8-431b-a0b0-203223a939ae